fUSD/lending_fUSD_20260527
["ID","MTS","AMOUNT","RATE_DAILY","PERIOD"]
[423092604,1779838239000,-500.0,0.00026429,2]
[423092608,1779838239000,-562.03870427,0.00026429,2]
[423092586,1779838239000,-1763.64,0.00024452,2]
[423092611,1779838239000,-159.45605626,0.00026429,2]
[423092607,1779838239000,-500.0,0.00026429,2]
[423092631,1779838239000,-3678.31105432,0.00028109,2]
[423092627,1779838239000,-352.9,0.00027397,10]
[423092636,1779838239000,-2090.06216786,0.00028511,2]
[423092625,1779838239000,-423.48,0.00027397,10]
[423092628,1779838239000,-3190.93345748,0.00027866,2]
[423092620,1779838239000,-819.27513449,0.00027023,2]
[423092613,1779838239000,-500.0,0.00026429,2]
[423092619,1779838239000,-1763.64,0.00026897,2]
[423092614,1779838239000,-559.014871,0.00026429,2]
[423092632,1779838239000,-231.3,0.00028267,2]
[423092616,1779838239000,-4089.87,0.00026819,2]
[423092623,1779838239000,-508.17,0.00027397,10]
[423092774,1779838240000,-150.0,0.00034027,7]
[423092756,1779838240000,-152.0,0.00033537,7]
[423092764,1779838240000,-150.0,0.00034027,7]
[423092751,1779838240000,-1233.28452998,0.000335,2]
[423092762,1779838240000,-291.2780006,0.00034027,30]
[423092766,1779838240000,-150.0,0.00034027,7]
[423092758,1779838240000,-156.0,0.00033602,30]
[423092770,1779838240000,-150.0,0.00034027,7]
[423092772,1779838240000,-150.0,0.00034027,7]
[423092753,1779838240000,-508.0,0.00033531,10]
[423092768,1779838240000,-150.0,0.00034027,7]
[423092793,1779838240000,-500.0,0.00034999,7]
[423092787,1779838240000,-500.0,0.00034999,30]
[423092789,1779838240000,-500.0,0.00034999,30]
[423092780,1779838240000,-156.0,0.00034602,30]
[423092791,1779838240000,-500.0,0.00034999,7]
[423092778,1779838240000,-231.3,0.00034182,7]
[423092782,1779838240000,-500.0,0.00034999,120]
[423092798,1779838240000,-874.33,0.00034999,2]
[423092784,1779838240000,-500.0,0.00034999,120]
[423092749,1779838240000,-3190.93345748,0.0003348,2]
[423092795,1779838240000,-874.33,0.00034999,2]
[423092776,1779838240000,-150.0,0.00034027,7]
[423092760,1779838240000,-2090.06216786,0.00033867,2]
[423092720,1779838240000,-1761.75175935,0.00032,2]
[423092746,1779838240000,-500.0,0.00033462,7]
[423092811,1779838240000,-874.33,0.00035293,2]
[423092709,1779838240000,-303.67456761,0.00031289,2]
[423092701,1779838240000,-239.94411171,0.00030981,2]
[423092703,1779838240000,-466.50982554,0.00030981,2]
[423092707,1779838240000,-2090.06216786,0.00031189,2]
[423092714,1779838240000,-150.0,0.000315,2]
[423092705,1779838240000,-682.29238522,0.00031,2]
[423092712,1779838240000,-200.73374635,0.000315,2]
[423092716,1779838240000,-3678.31105432,0.00031557,2]
[423092718,1779838240000,-156.0,0.00031602,30]
[423092747,1779838240000,-874.33,0.00033462,2]
[423092721,1779838240000,-304.33,0.00032015,120]
[423092725,1779838240000,-2407.346,0.00032147,31]
[423092729,1779838240000,-231.3,0.0003221,5]
[423092727,1779838240000,-174.019,0.00032147,31]
[423092732,1779838240000,-271.98,0.00032488,120]
[423092731,1779838240000,-909.71458408,0.000323,2]
[423092734,1779838240000,-156.0,0.00032602,30]
[423092744,1779838240000,-3678.31105432,0.00033281,2]
[423092738,1779838240000,-400.0,0.000329,12]
[423092742,1779838240000,-1817.50446478,0.00033181,6]
[423092740,1779838240000,-73511.11800251,0.00033,2]
[423092723,1779838240000,-167.06,0.00032098,2]
[423092813,1779838240000,-300.0,0.00035298,2]
[423092736,1779838240000,-4916.21473097,0.000328,2]
[423092801,1779838240000,-1952.50745436,0.00035,2]
[423092883,1779838240000,-300.0,0.00035298,2]
[423092885,1779838240000,-300.0,0.00035298,2]
[423092887,1779838240000,-300.0,0.00035298,2]
[423092927,1779838240000,-300.0,0.00035298,2]
[423092893,1779838240000,-300.0,0.00035298,2]
[423092899,1779838240000,-300.0,0.00035298,2]
[423092891,1779838240000,-300.0,0.00035298,2]
[423092895,1779838240000,-148.92974394,0.00035298,2]
[423092889,1779838240000,-605.24124213,0.00035298,2]
[423092897,1779838240000,-151.07025606,0.00035298,2]
[423092875,1779838240000,-300.0,0.00035298,2]
[423092903,1779838240000,-479.49582606,0.00035298,2]
[423092907,1779838240000,-102.81499991,0.00035298,2]
[423092919,1779838240000,-300.0,0.00035298,2]
[423092920,1779838240000,-300.0,0.00035298,2]
[423092923,1779838240000,-300.96252262,0.00035298,2]
[423092925,1779838240000,-300.0,0.00035298,2]
[423092914,1779838240000,-300.0,0.00035298,2]
[423092916,1779838240000,-302.1844563,0.00035298,2]
[423092910,1779838240000,-894.55274135,0.00035298,2]
[423092912,1779838240000,-726.99445071,0.00035298,2]
[423092799,1779838240000,-4759.36983209,0.00035,2]
[423092905,1779838240000,-965.48520181,0.00035298,2]
[423092879,1779838240000,-300.0,0.00035298,2]
[423092901,1779838240000,-48.92974394,0.00035298,2]
[423092873,1779838240000,-133.05012405,0.00035298,2]
[423092881,1779838240000,-300.0,0.00035298,2]
[423092805,1779838240000,-3678.31105432,0.00035004,2]
[423092803,1779838240000,-10150.61581423,0.00035,7]
[423092818,1779838240000,-300.0,0.00035298,2]
[423092819,1779838240000,-1096.16608281,0.00035298,2]
[423092809,1779838240000,-500.0,0.00035293,7]
[423092822,1779838240000,-193.28325913,0.00035298,2]
[423092833,1779838240000,-242.23093269,0.00035298,2]
[423092835,1779838240000,-57.76906731,0.00035298,2]
[423092815,1779838240000,-300.0,0.00035298,2]
[423092838,1779838240000,-300.0,0.00035298,2]
[423092807,1779838240000,-161.25116133,0.0003528,60]
[423092840,1779838240000,-145.23093269,0.00035298,2]
[423092877,1779838240000,-493.32888988,0.00035298,2]
[423092826,1779838240000,-106.71674087,0.00035298,2]
[423092853,1779838240000,-226.39319706,0.00035298,2]
[423092856,1779838240000,-166.94987595,0.00035298,2]
[423092848,1779838240000,-300.0,0.00035298,2]
[423092850,1779838240000,-73.60680294,0.00035298,2]
[423092844,1779838240000,-300.0,0.00035298,2]
[423092842,1779838240000,-154.76906731,0.00035298,2]
[423092829,1779838240000,-300.0,0.00035298,2]
[423092831,1779838240000,-300.0,0.00035298,2]
[423092846,1779838240000,-300.0,0.00035298,2]
[423092945,1779838241000,-524.24886369,0.00035298,2]
[423092953,1779838241000,-103.31812925,0.00035298,2]
[423092949,1779838241000,-3.31812925,0.00035298,2]
[423092950,1779838241000,-300.0,0.00035298,2]
[423092939,1779838241000,-300.0,0.00035298,2]
[423092929,1779838241000,-300.0,0.00035298,2]
[423092935,1779838241000,-300.0,0.00035298,2]
[423092933,1779838241000,-300.0,0.00035298,2]
[423092931,1779838241000,-300.0,0.00035298,2]
[423092941,1779838241000,-344.4170137,0.00035298,2]
[423092937,1779838241000,-1263.82495173,0.00035298,2]
[423092951,1779838241000,-196.68187075,0.00035298,2]
[423092961,1779838241000,-300.0,0.00035298,2]
[423092954,1779838241000,-697.10187075,0.00035298,2]
[423092979,1779838241000,-5.82864581,0.00035298,2]
[423092977,1779838241000,-1633.90603547,0.00035298,2]
[423092975,1779838241000,-50.85668792,0.00035298,2]
[423092943,1779838241000,-300.0,0.00035298,2]
[423092973,1779838241000,-249.14331208,0.00035298,2]
[423092971,1779838241000,-300.0,0.00035298,2]
[423092960,1779838241000,-950.21744792,0.00035298,2]
[423092965,1779838241000,-67.97167056,0.00035298,2]
[423092958,1779838241000,-300.0,0.00035298,2]
[423092963,1779838241000,-1148.70755237,0.00035298,2]
[423092956,1779838241000,-168.42841726,0.00035298,2]
[423092969,1779838241000,-242.01827072,0.00035298,2]
[423093141,1779838243000,-294.17135419,0.00035298,2]
[423093144,1779838243000,-594.73329586,0.00035298,2]
[423093143,1779838243000,-300.0,0.00035298,2]
[423093142,1779838243000,-300.0,0.00035298,2]
[423093146,1779838243000,-300.0,0.00035298,2]
[423093140,1779838243000,-207.49,0.00024658,2]
[423093149,1779838243000,-578.19877315,0.00035298,2]
[423093145,1779838243000,-300.0,0.00035298,2]
[423093147,1779838243000,-464.43646992,0.00035298,2]
[423093148,1779838243000,-300.0,0.00035298,2]
[423093151,1779838243000,-452.48121198,0.00035298,2]
[423093150,1779838243000,-300.0,0.00035298,2]
[423093170,1779838244000,-300.0,0.00035298,2]
[423093169,1779838244000,-1096.16608281,0.00035298,2]
[423093172,1779838244000,-300.0,0.00035298,2]
[423093167,1779838244000,-300.0,0.00035298,2]
[423093185,1779838244000,-300.0,0.00035298,2]
[423093175,1779838244000,-300.0,0.00035298,2]
[423093166,1779838244000,-300.0,0.00035298,2]
[423093186,1779838244000,-300.0,0.00035298,2]
[423093177,1779838244000,-300.0,0.00035298,2]
[423093183,1779838244000,-493.32888988,0.00035298,2]
[423093171,1779838244000,-300.0,0.00035298,2]
[423093168,1779838244000,-300.0,0.00035298,2]
[423093165,1779838244000,-300.0,0.00035298,2]
[423093182,1779838244000,-300.0,0.00035298,2]
[423093162,1779838244000,-7.66491581,0.00035298,2]
[423093161,1779838244000,-300.0,0.00035298,2]
[423093158,1779838244000,-484.71261076,0.00035298,2]
[423093160,1779838244000,-300.0,0.00035298,2]
[423093159,1779838244000,-310.24516055,0.00035298,2]
[423093152,1779838244000,-300.0,0.00035298,2]
[423093155,1779838244000,-300.0,0.00035298,2]
[423093153,1779838244000,-300.0,0.00035298,2]
[423093154,1779838244000,-300.0,0.00035298,2]
[423093157,1779838244000,-300.0,0.00035298,2]
[423093156,1779838244000,-300.0,0.00035298,2]
[423093164,1779838244000,-292.33508419,0.00035298,2]
[423093184,1779838244000,-300.0,0.00035298,2]
[423093173,1779838244000,-300.0,0.00035298,2]
[423093180,1779838244000,-300.0,0.00035298,2]
[423093176,1779838244000,-300.0,0.00035298,2]
[423093209,1779838244000,-534.5426683,0.00035298,2]
[423093208,1779838244000,-300.0,0.00035298,2]
[423093207,1779838244000,-300.0,0.00035298,2]
[423093203,1779838244000,-300.96252262,0.00035298,2]
[423093201,1779838244000,-300.0,0.00035298,2]
[423093204,1779838244000,-300.0,0.00035298,2]
[423093205,1779838244000,-300.0,0.00035298,2]
[423093206,1779838244000,-300.0,0.00035298,2]
[423093197,1779838244000,-300.0,0.00035298,2]
[423093199,1779838244000,-300.0,0.00035298,2]
[423093198,1779838244000,-302.1844563,0.00035298,2]
[423093188,1779838244000,-605.24124213,0.00035298,2]
[423093202,1779838244000,-300.0,0.00035298,2]
[423093196,1779838244000,-726.99445071,0.00035298,2]
[423093178,1779838244000,-300.0,0.00035298,2]
[423093194,1779838244000,-1068.30020172,0.00035298,2]
[423093174,1779838244000,-300.0,0.00035298,2]
[423093181,1779838244000,-300.0,0.00035298,2]
[423093179,1779838244000,-300.0,0.00035298,2]
[423093190,1779838244000,-300.0,0.00035298,2]
[423093189,1779838244000,-300.0,0.00035298,2]
[423093191,1779838244000,-300.0,0.00035298,2]
[423093192,1779838244000,-300.0,0.00035298,2]
[423093195,1779838244000,-894.55274135,0.00035298,2]
[423093193,1779838244000,-528.42557,0.00035298,2]
[423093187,1779838244000,-300.0,0.00035298,2]
[423093234,1779838246000,-300.0,0.00035298,2]
[423093235,1779838246000,-594.73329586,0.00035298,2]
[423093241,1779838246000,-452.48121198,0.00035298,2]
[423093230,1779838246000,-300.0,0.00035298,2]
[423093242,1779838246000,-300.0,0.00035298,2]
[423093240,1779838246000,-578.19877315,0.00035298,2]
[423093239,1779838246000,-300.0,0.00035298,2]
[423093232,1779838246000,-300.0,0.00035298,2]
[423093238,1779838246000,-464.43646992,0.00035298,2]
[423093237,1779838246000,-300.0,0.00035298,2]
[423093233,1779838246000,-300.0,0.00035298,2]
[423093236,1779838246000,-300.0,0.00035298,2]
[423093231,1779838246000,-1633.90603547,0.00035298,2]
[423093216,1779838246000,-300.0,0.00035298,2]
[423093243,1779838246000,-300.0,0.00035298,2]
[423093223,1779838246000,-865.53028801,0.00035298,2]
[423093226,1779838246000,-300.0,0.00035298,2]
[423093224,1779838246000,-950.21744792,0.00035298,2]
[423093229,1779838246000,-300.0,0.00035298,2]
[423093225,1779838246000,-300.09,0.00035298,2]
[423093228,1779838246000,-309.98994128,0.00035298,2]
[423093222,1779838246000,-300.0,0.00035298,2]
[423093219,1779838246000,-300.0,0.00035298,2]
[423093220,1779838246000,-300.0,0.00035298,2]
[423093218,1779838246000,-527.56699294,0.00035298,2]
[423093217,1779838246000,-344.4170137,0.00035298,2]
[423093215,1779838246000,-729.28228343,0.00035298,2]
[423093227,1779838246000,-1148.70755237,0.00035298,2]
[423093245,1779838246000,-300.0,0.00035298,2]
[423093221,1779838246000,-300.0,0.00035298,2]
[423093247,1779838246000,-300.0,0.00035298,2]
[423093275,1779838246000,-408.5863196,0.00036542,120]
[423093273,1779838246000,-262.82663044,0.00036542,120]
[423093271,1779838246000,-507.87506377,0.00036542,120]
[423093270,1779838246000,-500.0,0.00036542,120]
[423093269,1779838246000,-500.0,0.00036542,30]
[423093266,1779838246000,-363.43170583,0.00036541,120]
[423093272,1779838246000,-500.0,0.00036542,15]
[423093268,1779838246000,-500.0,0.00036542,120]
[423093267,1779838246000,-500.0,0.00036541,120]
[423093265,1779838246000,-136.56829417,0.00036541,120]
[423093264,1779838246000,-500.0,0.00036541,120]
[423093259,1779838246000,-3190.93345748,0.00036287,2]
[423093260,1779838246000,-289.7638191,0.00036317,3]
[423093263,1779838246000,-161.27412344,0.00036443,2]
[423093274,1779838246000,-237.17336956,0.00036542,120]
[423093256,1779838246000,-231.3,0.00036153,30]
[423093258,1779838246000,-704.0,0.00036278,5]
[423093248,1779838246000,-300.0,0.00035298,2]
[423093244,1779838246000,-300.0,0.00035298,2]
[423093250,1779838246000,-1817.50446478,0.00035348,9]
[423093249,1779838246000,-484.71261076,0.00035298,2]
[423093253,1779838246000,-156.0,0.00035602,30]
[423093252,1779838246000,-9999.99,0.00035455,2]
[423093251,1779838246000,-294.08,0.00035445,10]
[423093254,1779838246000,-304.33,0.00036017,120]
[423093255,1779838246000,-200.0,0.000361,30]
[423093257,1779838246000,-674.0,0.00036278,5]
[423093261,1779838246000,-500.0,0.00036357,120]
[423093246,1779838246000,-300.0,0.00035298,2]
[423093262,1779838246000,-208.92835186,0.000364,120]
[423093280,1779838400000,-197.19,0.00016438,2]
[423093282,1779838420000,-210.10726048,0.00016438,2]
[423093283,1779838441000,-148.00273952,0.00016438,2]
[423093284,1779838602000,150.0,0.00015505,2]
[423093285,1779838610000,291.5475938,0.00011966,2]
[423093286,1779838638000,250.0,0.00014,2]
[423093287,1779838654000,-268.4489658,0.00016,2]
[423093288,1779838674000,-31.5510342,0.00016,2]
[423093289,1779838728000,-250.0,0.00016438,2]
[423093295,1779838758000,182.59,0.00026585,120]
[423093296,1779838781000,-150.0,0.00016438,2]
[423093300,1779838990000,289.56,0.00013129,2]
[423093302,1779838990000,289.56,0.00014511,2]
[423093301,1779838990000,289.56,0.0001382,2]
[423093304,1779839265000,-289.56,0.00015202,2]
[423093305,1779839265000,-10.44,0.00015893,2]
[423093308,1779839272000,-70.88,0.0001621,2]
[423093307,1779839272000,-150.0,0.00016051,2]
[423093306,1779839272000,-279.12,0.00015893,2]
[423093309,1779839274000,-79.12,0.0001621,2]
[423093310,1779839274000,-158.0,0.00016368,2]
[423093311,1779839275000,-262.88,0.00016438,2]
[423093313,1779839278000,-287.18,0.00016484,2]
[423093312,1779839278000,-212.82,0.00016438,2]
[423093315,1779839283000,-228.08066229,0.00016575,2]
[423093314,1779839283000,-71.91933771,0.00016484,2]
[423093316,1779839318000,-194.72792766,0.00016579,2]
[423093317,1779839338000,-55.27207234,0.00016579,2]
[423093319,1779839391000,-518.64,0.00016496,2]
[423093320,1779839412000,-151.57016205,0.00016584,2]
[423093323,1779839432000,-400.0,0.000165,2]
[423093373,1779839433000,-510.99997,0.00025082,2]
[423093354,1779839433000,-500.0,0.00019155,2]
[423093351,1779839433000,-500.0,0.00019155,2]
[423093355,1779839433000,-289.56,0.00019348,2]
[423093356,1779839433000,-289.56,0.00020039,2]
[423093357,1779839433000,-475.7,0.00020381,2]
[423093359,1779839433000,-289.56,0.00021421,2]
[423093361,1779839433000,-475.7,0.00022353,2]
[423093360,1779839433000,-289.56,0.00022112,2]
[423093368,1779839433000,-287.21,0.00024658,2]
[423093358,1779839433000,-289.56,0.0002073,2]
[423093366,1779839433000,-475.7,0.00024324,2]
[423093374,1779839433000,-500.0,0.00025168,2]
[423093364,1779839433000,-289.56,0.00024185,2]
[423093367,1779839433000,-186.18,0.00024658,2]
[423093363,1779839433000,-289.56,0.00023494,2]
[423093365,1779839433000,-4987.66,0.00024271,2]
[423093370,1779839433000,-1000.0,0.00024913,2]
[423093376,1779839433000,-500.0,0.0002527,2]
[423093377,1779839433000,-166.66,0.00025276,30]
[423093380,1779839433000,-811.94,0.0002561,2]
[423093371,1779839433000,-5000.0,0.00025063,2]
[423093369,1779839433000,-289.56,0.00024876,2]
[423093378,1779839433000,-289.56,0.00025566,2]
[423093372,1779839433000,-518.0,0.00025082,2]
[423093353,1779839433000,-500.0,0.00019155,2]
[423093362,1779839433000,-289.56,0.00022803,2]
[423093352,1779839433000,-500.0,0.00019155,2]
[423093348,1779839433000,-500.0,0.00019155,2]
[423093330,1779839433000,-500.0,0.00016811,2]
[423093326,1779839433000,-289.56,0.00016584,2]
[423093328,1779839433000,-100.88494196,0.00016692,2]
[423093324,1779839433000,-63.739068,0.000165,2]
[423093327,1779839433000,-149.11505804,0.00016692,2]
[423093333,1779839433000,-202.62761654,0.00016935,2]
[423093331,1779839433000,-500.0,0.00016853,2]
[423093325,1779839433000,-3.42983795,0.00016584,2]
[423093332,1779839433000,-500.0,0.00016894,2]
[423093329,1779839433000,-167.9,0.00016712,2]
[423093338,1779839433000,-11353.9697222,0.00017086,2]
[423093337,1779839433000,-1853.0302778,0.00017086,2]
[423093345,1779839433000,-250.0,0.00018233,2]
[423093334,1779839433000,-270.0,0.00017085,2]
[423093336,1779839433000,-1200.0,0.00017085,2]
[423093375,1779839433000,-3200.46,0.00025168,2]
[423093339,1779839433000,-3789.0,0.00017255,2]
[423093340,1779839433000,-289.56,0.00017275,2]
[423093342,1779839433000,-289.56,0.00017966,2]
[423093341,1779839433000,-231.95,0.00017306,2]
[423093344,1779839433000,-250.0,0.00018146,2]
[423093343,1779839433000,-3942.0,0.00018092,2]
[423093347,1779839433000,-289.56,0.00018657,2]
[423093349,1779839433000,-500.0,0.00019155,2]
[423093346,1779839433000,-475.7,0.0001841,2]
[423093350,1779839433000,-811.94,0.00019155,2]
[423093379,1779839433000,-500.0,0.0002561,2]
[423093335,1779839433000,-300.0,0.00017085,2]
[423093381,1779839433000,-500.0,0.0002561,2]
[423093411,1779839433000,-500.0,0.0002863,2]
[423093412,1779839433000,-500.0,0.0002863,2]
[423093414,1779839433000,-500.0,0.0002863,2]
[423093409,1779839433000,-500.0,0.0002863,2]
[423093418,1779839433000,-167.43265885,0.0002863,2]
[423093428,1779839433000,-318.29697578,0.0002863,2]
[423093420,1779839433000,-500.0,0.0002863,2]
[423093419,1779839433000,-500.0,0.0002863,2]
[423093417,1779839433000,-218.24906331,0.0002863,2]
[423093421,1779839433000,-500.0,0.0002863,2]
[423093425,1779839433000,-500.0,0.0002863,2]
[423093422,1779839433000,-500.0,0.0002863,2]
[423093423,1779839433000,-500.0,0.0002863,2]
[423093427,1779839433000,-500.0,0.0002863,2]
[423093426,1779839433000,-500.0,0.0002863,2]
[423093429,1779839433000,-500.0,0.0002863,2]
[423093432,1779839433000,-150.0,0.0002863,2]
[423093431,1779839433000,-150.0,0.0002863,2]
[423093434,1779839433000,-150.0,0.0002863,2]
[423093436,1779839433000,-150.0,0.0002863,2]
[423093435,1779839433000,-492.0,0.0002863,2]
[423093437,1779839433000,-492.0,0.0002863,2]
[423093430,1779839433000,-454.03434406,0.0002863,2]
[423093433,1779839433000,-492.0,0.0002863,2]
[423093392,1779839433000,-166.66,0.00027936,30]
[423093410,1779839433000,-500.0,0.0002863,2]
[423093415,1779839433000,-500.0,0.0002863,2]
[423093424,1779839433000,-500.0,0.0002863,2]
[423093408,1779839433000,-500.0,0.0002863,2]
[423093382,1779839433000,-500.0,0.0002561,2]
[423093413,1779839433000,-500.0,0.0002863,2]
[423093383,1779839433000,-500.0,0.0002561,2]
[423093384,1779839433000,-500.0,0.0002561,2]
[423093386,1779839433000,-289.56,0.00026257,2]
[423093390,1779839433000,-1852.42,0.00027077,2]
[423093385,1779839433000,-166.66,0.00025941,30]
[423093387,1779839433000,-475.7,0.00026296,2]
[423093388,1779839433000,-2252.42,0.00026575,2]
[423093389,1779839433000,-166.66,0.00026606,30]
[423093393,1779839433000,-191.57,0.0002794,30]
[423093395,1779839433000,-475.7,0.00028267,2]
[423093394,1779839433000,-308.20331736,0.00028208,2]
[423093391,1779839433000,-166.66,0.00027271,30]
[423093400,1779839433000,-500.0,0.0002863,2]
[423093416,1779839433000,-500.0,0.0002863,2]
[423093407,1779839433000,-500.0,0.0002863,2]
[423093406,1779839433000,-500.0,0.0002863,2]
[423093405,1779839433000,-501.65951068,0.0002863,2]
[423093402,1779839433000,-332.66890927,0.0002863,2]
[423093401,1779839433000,-500.0,0.0002863,2]
[423093403,1779839433000,-500.0,0.0002863,2]
[423093397,1779839433000,-386.5,0.0002862,10]
[423093399,1779839433000,-500.0,0.0002863,2]
[423093396,1779839433000,-151.80163393,0.0002832,2]
[423093404,1779839433000,-500.0,0.0002863,2]
[423093398,1779839433000,-322.08,0.0002862,10]
[423093460,1779839434000,-492.0,0.0002863,2]
[423093455,1779839434000,-492.0,0.0002863,2]
[423093461,1779839434000,-492.0,0.0002863,2]
[423093464,1779839434000,-215.42269777,0.00028699,2]
[423093463,1779839434000,-208.92835186,0.00028699,2]
[423093465,1779839434000,-150.0,0.00029,2]
[423093457,1779839434000,-492.0,0.0002863,2]
[423093456,1779839434000,-492.0,0.0002863,2]
[423093459,1779839434000,-492.0,0.0002863,2]
[423093479,1779839434000,-500.0,0.00030129,120]
[423093452,1779839434000,-492.0,0.0002863,2]
[423093462,1779839434000,-504.2358331,0.0002863,2]
[423093451,1779839434000,-492.0,0.0002863,2]
[423093438,1779839434000,-256.23857997,0.0002863,2]
[423093450,1779839434000,-492.0,0.0002863,2]
[423093449,1779839434000,-492.0,0.0002863,2]
[423093448,1779839434000,-281.82628163,0.0002863,2]
[423093445,1779839434000,-492.0,0.0002863,2]
[423093447,1779839434000,-492.0,0.0002863,2]
[423093446,1779839434000,-150.0,0.0002863,2]
[423093454,1779839434000,-492.0,0.0002863,2]
[423093443,1779839434000,-150.0,0.0002863,2]
[423093444,1779839434000,-492.0,0.0002863,2]
[423093440,1779839434000,-492.0,0.0002863,2]
[423093441,1779839434000,-492.0,0.0002863,2]
[423093442,1779839434000,-492.0,0.0002863,2]
[423093439,1779839434000,-492.0,0.0002863,2]
[423093467,1779839434000,-177.2,0.00029,2]
[423093453,1779839434000,-492.0,0.0002863,2]
[423093466,1779839434000,-177.18,0.00029,2]
[423093458,1779839434000,-492.0,0.0002863,2]
[423093468,1779839434000,-177.18,0.00029,2]
[423093478,1779839434000,-500.0,0.00030129,7]
[423093497,1779839434000,-371.24548325,0.0003133,2]
[423093495,1779839434000,-3003.00622551,0.0003133,2]
[423093499,1779839434000,-693.69606344,0.0003133,2]
[423093492,1779839434000,-1503.14592439,0.0003133,2]
[423093494,1779839434000,-5775.30189082,0.0003133,2]
[423093493,1779839434000,-2072.67693804,0.0003133,2]
[423093496,1779839434000,-398.23314633,0.0003133,2]
[423093490,1779839434000,-284.60163902,0.0003133,2]
[423093491,1779839434000,-22386.20783928,0.0003133,2]
[423093486,1779839434000,-625.05307491,0.0003133,2]
[423093488,1779839434000,-1471.73737794,0.0003133,2]
[423093487,1779839434000,-1255.39034168,0.0003133,2]
[423093485,1779839434000,-939.169211,0.0003133,2]
[423093498,1779839434000,-488.39471186,0.0003133,2]
[423093489,1779839434000,-1030.13421599,0.0003133,2]
[423093482,1779839434000,-160.0,0.00030601,30]
[423093477,1779839434000,-500.0,0.00030129,120]
[423093476,1779839434000,-500.0,0.00030129,120]
[423093473,1779839434000,-182.59,0.00029908,120]
[423093475,1779839434000,-811.94,0.00030129,2]
[423093469,1779839434000,-191.58,0.00029,7]
[423093470,1779839434000,-154.0,0.00029601,30]
[423093471,1779839434000,-155.0,0.00029601,30]
[423093472,1779839434000,-518.0,0.00029659,6]
[423093481,1779839434000,-475.7,0.00030239,2]
[423093484,1779839434000,-1617.51044659,0.0003133,2]
[423093483,1779839434000,-33127.71269294,0.0003133,2]
[423093480,1779839434000,-500.0,0.00030129,30]
[423093474,1779839434000,-500.0,0.00030129,7]
[423093510,1779839438000,-2546.60376331,0.0003133,2]
[423093511,1779839438000,-165.59,0.00031361,2]
[423093512,1779839438000,-206.74242216,0.00032,120]
[423093514,1779839438000,-210.10726047,0.00032,120]
[423093515,1779839438000,-268.4489658,0.00032,120]
[423093513,1779839438000,-166.82913184,0.00032,120]
[423093535,1779839439000,-500.0,0.00034009,7]
[423093534,1779839439000,-500.0,0.00034009,7]
[423093536,1779839439000,-500.0,0.00034009,2]
[423093528,1779839439000,-206.74242216,0.000339,120]
[423093529,1779839439000,-509.8187433,0.00034,10]
[423093531,1779839439000,-500.0,0.00034009,2]
[423093530,1779839439000,-500.0,0.00034009,2]
[423093533,1779839439000,-500.0,0.00034009,2]
[423093532,1779839439000,-500.0,0.00034009,2]
[423093527,1779839439000,-192.20233017,0.00033304,2]
[423093522,1779839439000,-500.0,0.00033304,2]
[423093524,1779839439000,-500.0,0.00033304,2]
[423093525,1779839439000,-460.33258363,0.00033304,2]